[Event "Late-Titled-Tuesday-Blitz-September-19-2023"]
[Site "Chess.com"]
[Date "2023.09.19"]
[Round "2"]
[White "marcodobrikov"]
[Black "GMBenjaminBok"]
[Result "0-1"]
[WhiteElo "2584"]
[BlackElo "2952"]
[TimeControl "180+1"]
[EndTime "14:18:29 PDT"]
[Termination "GMBenjaminBok won by resignation"]

1. d4 {[%clk 0:03:00.3]} 1... Nf6 {[%clk 0:02:59.1]} 2. Nf3 {[%clk 0:02:59.5]}
2... d5 {[%clk 0:02:58.4]} 3. Bf4 {[%clk 0:02:58.4]} 3... c5 {[%clk 0:02:57.5]}
4. c3 {[%clk 0:02:57.6]} 4... Nc6 {[%clk 0:02:57.2]} 5. e3 {[%clk 0:02:57.7]}
5... Qb6 {[%clk 0:02:56.2]} 6. Qb3 {[%clk 0:02:57.3]} 6... c4 {[%clk 0:02:56]}
7. Qc2 {[%clk 0:02:49]} 7... Bf5 {[%clk 0:02:55.5]} 8. Qc1 {[%clk 0:02:49.6]}
8... Nh5 {[%clk 0:02:55.3]} 9. Bg3 {[%clk 0:02:24.4]} 9... e6 {[%clk 0:02:50.5]}
10. Nbd2 {[%clk 0:02:23.8]} 10... h6 {[%clk 0:02:35.2]} 11. Be2 {[%clk
0:02:18.1]} 11... Nxg3 {[%clk 0:02:27]} 12. hxg3 {[%clk 0:02:18.1]} 12... Bd6
{[%clk 0:02:26.2]} 13. e4 {[%clk 0:02:15.1]} 13... Bg6 {[%clk 0:01:54.4]} 14.
exd5 {[%clk 0:01:43]} 14... exd5 {[%clk 0:01:55.3]} 15. Nf1 {[%clk 0:01:34.1]}
15... O-O {[%clk 0:01:51.8]} 16. Ne3 {[%clk 0:01:33.3]} 16... Ne7 {[%clk
0:01:18.7]} 17. O-O {[%clk 0:01:26.9]} 17... Rfe8 {[%clk 0:01:16.9]} 18. Qd2
{[%clk 0:01:25.4]} 18... Qc7 {[%clk 0:01:14]} 19. Rfe1 {[%clk 0:01:23.4]} 19...
b5 {[%clk 0:01:11]} 20. Nh4 {[%clk 0:01:22.6]} 20... Bh7 {[%clk 0:01:01.4]} 21.
a4 {[%clk 0:00:55.5]} 21... bxa4 {[%clk 0:00:29.4]} 22. Rxa4 {[%clk 0:00:55]}
22... Rab8 {[%clk 0:00:30]} 23. Rea1 {[%clk 0:00:53.3]} 23... Rb7 {[%clk
0:00:30.2]} 24. Bf3 {[%clk 0:00:44]} 24... Qb8 {[%clk 0:00:18]} 25. R4a2 {[%clk
0:00:31.7]} 25... Rb5 {[%clk 0:00:16.2]} 26. Be2 {[%clk 0:00:21.1]} 26... a5
{[%clk 0:00:15.4]} 27. Nf3 {[%clk 0:00:20.7]} 27... Qb6 {[%clk 0:00:13.1]} 28.
Qc1 {[%clk 0:00:19.9]} 28... Rb8 {[%clk 0:00:12.8]} 29. Nd1 {[%clk 0:00:19.8]}
29... Be4 {[%clk 0:00:11.7]} 30. Nd2 {[%clk 0:00:19.5]} 30... Bg6 {[%clk
0:00:11.4]} 31. Bf3 {[%clk 0:00:18.9]} 31... Kh7 {[%clk 0:00:11.2]} 32. Be2
{[%clk 0:00:18.7]} 32... Bf5 {[%clk 0:00:09.8]} 33. Bf3 {[%clk 0:00:18.2]} 33...
g5 {[%clk 0:00:09.3]} 34. Be2 {[%clk 0:00:16.7]} 34... Bg6 {[%clk 0:00:09.4]}
35. Bf3 {[%clk 0:00:16.6]} 35... Kg7 {[%clk 0:00:09.9]} 36. Be2 {[%clk
0:00:16.7]} 36... f6 {[%clk 0:00:10.2]} 37. Bf3 {[%clk 0:00:16.8]} 37... h5
{[%clk 0:00:10.4]} 38. Be2 {[%clk 0:00:16.5]} 38... g4 {[%clk 0:00:10.3]} 39.
Nf1 {[%clk 0:00:12.7]} 39... Nf5 {[%clk 0:00:10.7]} 40. Nfe3 {[%clk 0:00:12.5]}
40... Nxe3 {[%clk 0:00:10.5]} 41. Qxe3 {[%clk 0:00:12.7]} 41... Re8 {[%clk
0:00:10.7]} 42. Qd2 {[%clk 0:00:12.7]} 42... Qb8 {[%clk 0:00:08.5]} 43. Ne3
{[%clk 0:00:12.6]} 43... Qb7 {[%clk 0:00:06.2]} 44. Rxa5 {[%clk 0:00:11]} 44...
Rb8 {[%clk 0:00:04.2]} 45. Rxb5 {[%clk 0:00:10.5]} 45... Qxb5 {[%clk 0:00:05.1]}
46. Rd1 {[%clk 0:00:08.2]} 46... Qxb2 {[%clk 0:00:04.6]} 47. Nxd5 {[%clk
0:00:07.8]} 47... Qxd2 {[%clk 0:00:04.9]} 48. Rxd2 {[%clk 0:00:08.2]} 48... Rb1+
{[%clk 0:00:05]} 49. Rd1 {[%clk 0:00:08.5]} 49... Rb2 {[%clk 0:00:05.2]} 50. Bf1
{[%clk 0:00:08.1]} 50... Bf7 {[%clk 0:00:04.4]} 51. Ne3 {[%clk 0:00:08]} 51...
Rb3 {[%clk 0:00:04.5]} 52. Nxc4 {[%clk 0:00:07]} 52... Bxc4 {[%clk 0:00:03.5]}
53. Bxc4 {[%clk 0:00:07.6]} 53... Rxc3 {[%clk 0:00:04.4]} 54. Bf1 {[%clk
0:00:06.6]} 54... Rc2 {[%clk 0:00:04.7]} 55. Rd3 {[%clk 0:00:05.7]} 55... f5
{[%clk 0:00:04.8]} 56. f3 {[%clk 0:00:05.8]} 56... Bxg3 {[%clk 0:00:04.5]} 57.
fxg4 {[%clk 0:00:05.9]} 57... Bf2+ {[%clk 0:00:05.2]} 58. Kh2 {[%clk 0:00:06.2]}
58... hxg4 {[%clk 0:00:06.1]} 59. d5 {[%clk 0:00:06]} 59... Rc8 {[%clk 0:00:05]}
60. d6 {[%clk 0:00:06]} 60... Rh8+ {[%clk 0:00:04.5]} 61. Rh3 {[%clk 0:00:04.9]}
61... gxh3 {[%clk 0:00:05.3]} 62. gxh3 {[%clk 0:00:05.1]} 62... Kf6 {[%clk
0:00:05.7]} 63. Kg2 {[%clk 0:00:06]} 63... Bc5 {[%clk 0:00:05.8]} 64. Kf3 {[%clk
0:00:06.8]} 64... Bxd6 {[%clk 0:00:05.8]} 65. Kg2 {[%clk 0:00:06.7]} 65... Be5
{[%clk 0:00:06.7]} 66. Kf3 {[%clk 0:00:07.6]} 66... Rd8 {[%clk 0:00:06.9]} 67.
Bc4 {[%clk 0:00:08.3]} 67... Rd4 {[%clk 0:00:07]} 68. Be2 {[%clk 0:00:08.4]}
68... Rf4+ {[%clk 0:00:07.2]} 69. Kg2 {[%clk 0:00:09.1]} 69... Rb4 {[%clk
0:00:07.9]} 70. Bf3 {[%clk 0:00:09.3]} 70... Rb2+ {[%clk 0:00:07.9]} 71. Kf1
{[%clk 0:00:10]} 71... Kg5 {[%clk 0:00:08.4]} 72. Be2 {[%clk 0:00:09.8]} 72...
Kf4 {[%clk 0:00:08.7]} 73. Kf2 {[%clk 0:00:10]} 73... Bd4+ {[%clk 0:00:08.8]}
74. Kf1 {[%clk 0:00:10.7]} 74... Ke3 {[%clk 0:00:09.3]} 75. h4 {[%clk
0:00:11.5]} 75... Rxe2 {[%clk 0:00:08.8]} 0-1

[Event "Late-Titled-Tuesday-Blitz-September-19-2023"]
[Site "Chess.com"]
[Date "2023.09.19"]
[Round "2"]
[White "only_strong_moves"]
[Black "Lennis93"]
[Result "1-0"]
[WhiteElo "2533"]
[BlackElo "2729"]
[TimeControl "180+1"]
[EndTime "14:19:22 PDT"]
[Termination "only_strong_moves won on time"]

1. e4 {[%clk 0:03:00.9]} 1... c5 {[%clk 0:02:59]} 2. Nf3 {[%clk 0:03:00.7]} 2...
Nc6 {[%clk 0:02:59.7]} 3. d4 {[%clk 0:02:59.5]} 3... cxd4 {[%clk 0:03:00.6]} 4.
Nxd4 {[%clk 0:03:00.1]} 4... Qb6 {[%clk 0:03:01.2]} 5. Nb3 {[%clk 0:02:56.6]}
5... Nf6 {[%clk 0:03:01.3]} 6. Nc3 {[%clk 0:02:56.1]} 6... e6 {[%clk 0:03:02]}
7. Be3 {[%clk 0:02:54.5]} 7... Qc7 {[%clk 0:03:01.8]} 8. g3 {[%clk 0:02:43.1]}
8... a6 {[%clk 0:03:00.5]} 9. Bg2 {[%clk 0:02:42.4]} 9... h5 {[%clk 0:02:59.2]}
10. h3 {[%clk 0:02:41.2]} 10... h4 {[%clk 0:02:53.7]} 11. g4 {[%clk 0:02:39.3]}
11... Bd6 {[%clk 0:02:53.8]} 12. Bb6 {[%clk 0:02:30.3]} 12... Qb8 {[%clk
0:02:31.8]} 13. Qe2 {[%clk 0:02:26.3]} 13... Bf4 {[%clk 0:02:30.6]} 14. Nd2
{[%clk 0:02:14.3]} 14... O-O {[%clk 0:02:19.3]} 15. O-O-O {[%clk 0:02:12.6]}
15... d5 {[%clk 0:02:13.6]} 16. exd5 {[%clk 0:02:09.3]} 16... exd5 {[%clk
0:02:13]} 17. Nxd5 {[%clk 0:02:08.8]} 17... Nxd5 {[%clk 0:02:11.6]} 18. Bxd5
{[%clk 0:02:09.7]} 18... Nb4 {[%clk 0:02:09]} 19. Bb3 {[%clk 0:01:58.2]} 19...
Qd6 {[%clk 0:02:08.4]} 20. Be3 {[%clk 0:01:50.9]} 20... Be6 {[%clk 0:01:58.1]}
21. Kb1 {[%clk 0:01:36.9]} 21... Bxe3 {[%clk 0:01:52.9]} 22. Qxe3 {[%clk
0:01:37.8]} 22... Rac8 {[%clk 0:01:48.2]} 23. Ne4 {[%clk 0:01:34.7]} 23... Qc6
{[%clk 0:01:29]} 24. c3 {[%clk 0:01:22.4]} 24... Bxb3 {[%clk 0:01:26.4]} 25.
axb3 {[%clk 0:01:23.3]} 25... Nd5 {[%clk 0:01:11.3]} 26. Qg5 {[%clk 0:01:21]}
26... Nc7 {[%clk 0:00:32.4]} 27. Rhe1 {[%clk 0:01:15.9]} 27... Rfe8 {[%clk
0:00:25.8]} 28. f3 {[%clk 0:01:15]} 28... Re6 {[%clk 0:00:23.5]} 29. Qxh4 {[%clk
0:01:09.9]} 29... Rce8 {[%clk 0:00:23.3]} 30. Rd8 {[%clk 0:00:58]} 30... Qb5
{[%clk 0:00:07.6]} 31. b4 {[%clk 0:00:35.4]} 31... Rxd8 {[%clk 0:00:07.2]} 32.
Qxd8+ {[%clk 0:00:34.5]} 32... Ne8 {[%clk 0:00:07.9]} 33. Rd1 {[%clk 0:00:27.7]}
33... Qe2 {[%clk 0:00:03.6]} 34. Ng5 {[%clk 0:00:21.3]} 34... Re7 {[%clk
0:00:01.9]} 35. Qd3 {[%clk 0:00:12.8]} 35... Qxd3+ {[%clk 0:00:02.3]} 36. Rxd3
{[%clk 0:00:13.7]} 36... g6 {[%clk 0:00:02.7]} 37. Ne4 {[%clk 0:00:13.7]} 37...
Kg7 {[%clk 0:00:03.1]} 38. g5 {[%clk 0:00:12.7]} 38... Nc7 {[%clk 0:00:02.4]}
39. Ka2 {[%clk 0:00:10.3]} 39... Ne6 {[%clk 0:00:02.7]} 40. h4 {[%clk
0:00:09.2]} 40... Rc7 {[%clk 0:00:02.9]} 41. Nf6 {[%clk 0:00:08.5]} 41... Kf8
{[%clk 0:00:03.2]} 42. Nd7+ {[%clk 0:00:07.9]} 42... Ke7 {[%clk 0:00:03.6]} 43.
Ne5 {[%clk 0:00:08.5]} 43... b6 {[%clk 0:00:03]} 44. Ng4 {[%clk 0:00:08.1]}
44... a5 {[%clk 0:00:03.3]} 45. bxa5 {[%clk 0:00:08]} 45... bxa5 {[%clk
0:00:04.2]} 46. Ne3 {[%clk 0:00:08.5]} 46... Rb7 {[%clk 0:00:03.9]} 47. Nd5+
{[%clk 0:00:08.7]} 47... Kf8 {[%clk 0:00:04.3]} 48. Nf6 {[%clk 0:00:08.5]} 48...
Ke7 {[%clk 0:00:04.6]} 49. Rd5 {[%clk 0:00:07.5]} 49... a4 {[%clk 0:00:04.1]}
50. Ra5 {[%clk 0:00:07.6]} 50... Kd6 {[%clk 0:00:02.5]} 51. Ra6+ {[%clk
0:00:07.5]} 51... Ke5 {[%clk 0:00:02.9]} 52. Rxa4 {[%clk 0:00:05.6]} 52... Nc5
{[%clk 0:00:03.3]} 53. Ng4+ {[%clk 0:00:04.6]} 53... Kf5 {[%clk 0:00:02.8]} 54.
Rc4 {[%clk 0:00:04.2]} 54... Ra7+ {[%clk 0:00:02.3]} 55. Kb1 {[%clk 0:00:03.9]}
55... Nb3 {[%clk 0:00:02.8]} 56. Ne3+ {[%clk 0:00:04.4]} 56... Ke6 {[%clk
0:00:02.7]} 57. Re4+ {[%clk 0:00:03.4]} 57... Kd6 {[%clk 0:00:02.9]} 58. Kc2
{[%clk 0:00:03.5]} 58... Nc5 {[%clk 0:00:03.2]} 59. Rd4+ {[%clk 0:00:03.5]}
59... Ke5 {[%clk 0:00:03.5]} 60. Nc4+ {[%clk 0:00:04.4]} 60... Ke6 {[%clk
0:00:03]} 61. b4 {[%clk 0:00:04.5]} 61... Nd7 {[%clk 0:00:02.8]} 62. Rd6+ {[%clk
0:00:04]} 62... Ke7 {[%clk 0:00:03.3]} 63. Rd2 {[%clk 0:00:04.9]} 63... Rc7
{[%clk 0:00:03.7]} 64. Ne3 {[%clk 0:00:04.6]} 64... Ne5 {[%clk 0:00:03.2]} 65.
Nd5+ {[%clk 0:00:05.4]} 65... Kd6 {[%clk 0:00:02.2]} 66. Nxc7+ {[%clk
0:00:06.3]} 66... Kxc7 {[%clk 0:00:02.8]} 67. f4 {[%clk 0:00:06.6]} 67... Nf3
{[%clk 0:00:03.3]} 68. Rf2 {[%clk 0:00:06.8]} 68... Nxh4 {[%clk 0:00:03.9]} 69.
Rh2 {[%clk 0:00:07.4]} 69... Nf5 {[%clk 0:00:04.8]} 70. Rh7 {[%clk 0:00:07.7]}
70... Nd6 {[%clk 0:00:05.1]} 71. c4 {[%clk 0:00:07]} 71... Kc6 {[%clk 0:00:06]}
72. c5 {[%clk 0:00:07.3]} 72... Nf5 {[%clk 0:00:05.5]} 73. Rxf7 {[%clk
0:00:07.4]} 73... Ne3+ {[%clk 0:00:05.8]} 74. Kb1 {[%clk 0:00:07.3]} 74... Nd5
{[%clk 0:00:06.7]} 75. Rg7 {[%clk 0:00:07.3]} 75... Nxf4 {[%clk 0:00:06.4]} 76.
Rf7 {[%clk 0:00:07.9]} 76... Nd5 {[%clk 0:00:05.5]} 77. Kb2 {[%clk 0:00:08.3]}
77... Nxb4 {[%clk 0:00:02.8]} 78. Rf6+ {[%clk 0:00:07.9]} 78... Kxc5 {[%clk
0:00:03.4]} 79. Rxg6 {[%clk 0:00:08.8]} 79... Kd5 {[%clk 0:00:03.3]} 80. Kc3
{[%clk 0:00:08]} 80... Na2+ {[%clk 0:00:01.9]} 81. Kd3 {[%clk 0:00:08]} 81...
Nb4+ {[%clk 0:00:02.5]} 82. Ke3 {[%clk 0:00:08.1]} 82... Ke5 {[%clk 0:00:02.9]}
83. Kf3 {[%clk 0:00:06.9]} 83... Nd5 {[%clk 0:00:03.8]} 84. Kg4 {[%clk
0:00:06.4]} 84... Ne7 {[%clk 0:00:01.6]} 85. Rg7 {[%clk 0:00:06.3]} 85... Ke6
{[%clk 0:00:01.6]} 86. Kh5 {[%clk 0:00:06.1]} 86... Nf5 {[%clk 0:00:01.8]} 87.
Ra7 {[%clk 0:00:05.1]} 87... Ng3+ {[%clk 0:00:02]} 88. Kh6 {[%clk 0:00:05.3]}
88... Nf5+ {[%clk 0:00:01.7]} 89. Kh7 {[%clk 0:00:05.9]} 1-0

[Event "Late-Titled-Tuesday-Blitz-September-19-2023"]
[Site "Chess.com"]
[Date "2023.09.19"]
[Round "3"]
[White "HalfIsCrayfish"]
[Black "cukus"]
[Result "1-0"]
[WhiteElo "2567"]
[BlackElo "2405"]
[TimeControl "180+1"]
[EndTime "14:21:32 PDT"]
[Termination "HalfIsCrayfish won by resignation"]

1. a3 {[%clk 0:03:00.9]} 1... g6 {[%clk 0:02:54.2]} 2. e4 {[%clk 0:02:58.5]}
2... Bg7 {[%clk 0:02:53.6]} 3. Nf3 {[%clk 0:02:59.2]} 3... d6 {[%clk 0:02:53.2]}
4. Bc4 {[%clk 0:02:59.6]} 4... a6 {[%clk 0:02:52.3]} 5. O-O {[%clk 0:02:59.6]}
5... b5 {[%clk 0:02:52.1]} 6. Ba2 {[%clk 0:02:59.2]} 6... Bb7 {[%clk 0:02:52]}
7. Re1 {[%clk 0:02:59]} 7... e6 {[%clk 0:02:52.2]} 8. d4 {[%clk 0:02:59.3]} 8...
Ne7 {[%clk 0:02:52.2]} 9. Bg5 {[%clk 0:02:58.4]} 9... h6 {[%clk 0:02:51.5]} 10.
Be3 {[%clk 0:02:55.7]} 10... Nd7 {[%clk 0:02:51.5]} 11. Qd2 {[%clk 0:02:56.1]}
11... g5 {[%clk 0:02:51.5]} 12. Nc3 {[%clk 0:02:52.3]} 12... Ng6 {[%clk
0:02:50.9]} 13. h3 {[%clk 0:02:48.5]} 13... Qe7 {[%clk 0:02:50.3]} 14. Rad1
{[%clk 0:02:47.9]} 14... O-O-O {[%clk 0:02:48.1]} 15. d5 {[%clk 0:02:47.8]}
15... e5 {[%clk 0:02:46.1]} 16. a4 {[%clk 0:02:47.8]} 16... bxa4 {[%clk
0:02:35.8]} 17. Nxa4 {[%clk 0:02:39.4]} 17... f5 {[%clk 0:02:35.5]} 18. exf5
{[%clk 0:02:35.2]} 18... Nf4 {[%clk 0:02:35.2]} 19. Qb4 {[%clk 0:02:34.7]} 19...
Nxd5 {[%clk 0:02:26.6]} 20. Bxd5 {[%clk 0:02:33.5]} 1-0

[Event "Late-Titled-Tuesday-Blitz-September-19-2023"]
[Site "Chess.com"]
[Date "2023.09.19"]
[Round "3"]
[White "vladislavkovalev"]
[Black "Maksimus1998"]
[Result "1-0"]
[WhiteElo "2886"]
[BlackElo "2600"]
[TimeControl "180+1"]
[EndTime "14:22:08 PDT"]
[Termination "vladislavkovalev won by resignation"]

1. e4 {[%clk 0:03:00.9]} 1... c5 {[%clk 0:03:00.6]} 2. Nf3 {[%clk 0:03:01]} 2...
a6 {[%clk 0:03:01.2]} 3. c4 {[%clk 0:03:00.4]} 3... d5 {[%clk 0:03:01.7]} 4.
cxd5 {[%clk 0:02:55.7]} 4... e6 {[%clk 0:02:58.9]} 5. dxe6 {[%clk 0:02:54.5]}
5... Bxe6 {[%clk 0:02:58.6]} 6. d4 {[%clk 0:02:55.1]} 6... cxd4 {[%clk
0:02:57.3]} 7. Nxd4 {[%clk 0:02:56]} 7... Bb4+ {[%clk 0:02:46.8]} 8. Nc3 {[%clk
0:02:54.4]} 8... Qb6 {[%clk 0:02:26]} 9. Be3 {[%clk 0:02:39.2]} 9... Bc5 {[%clk
0:02:03.7]} 10. Qd2 {[%clk 0:02:38.2]} 10... Nc6 {[%clk 0:01:50.8]} 11. Na4
{[%clk 0:02:29.5]} 1-0

[Event "Late-Titled-Tuesday-Blitz-September-19-2023"]
[Site "Chess.com"]
[Date "2023.09.19"]
[Round "3"]
[White "leoduarte"]
[Black "Arystanner"]
[Result "0-1"]
[WhiteElo "2483"]
[BlackElo "2788"]
[TimeControl "180+1"]
[EndTime "14:22:26 PDT"]
[Termination "Arystanner won by resignation"]

1. d4 {[%clk 0:02:42.1]} 1... d5 {[%clk 0:02:59.7]} 2. Nf3 {[%clk 0:02:41.5]}
2... Nf6 {[%clk 0:02:59.6]} 3. Bf4 {[%clk 0:02:42.2]} 3... e6 {[%clk 0:03:00]}
4. e3 {[%clk 0:02:42.8]} 4... c5 {[%clk 0:03:00.3]} 5. Nbd2 {[%clk 0:02:39.8]}
5... Nc6 {[%clk 0:03:00.7]} 6. c3 {[%clk 0:02:40]} 6... Nh5 {[%clk 0:03:01]} 7.
Bg5 {[%clk 0:02:37.5]} 7... Qb6 {[%clk 0:03:01.4]} 8. Qc2 {[%clk 0:02:30]} 8...
h6 {[%clk 0:03:01.5]} 9. Bh4 {[%clk 0:02:30.1]} 9... g5 {[%clk 0:03:01.9]} 10.
Bg3 {[%clk 0:02:30.7]} 10... Nxg3 {[%clk 0:03:02.4]} 11. hxg3 {[%clk 0:02:31.6]}
11... Bg7 {[%clk 0:03:03]} 12. dxc5 {[%clk 0:02:29.8]} 12... Qxc5 {[%clk
0:03:02.9]} 13. Bd3 {[%clk 0:02:29.9]} 13... Bd7 {[%clk 0:03:03.1]} 14. e4
{[%clk 0:02:29]} 14... O-O-O {[%clk 0:03:03.1]} 15. exd5 {[%clk 0:02:28.6]}
15... exd5 {[%clk 0:03:02.8]} 16. O-O {[%clk 0:02:23.1]} 16... Kb8 {[%clk
0:03:02.8]} 17. b4 {[%clk 0:02:16.1]} 17... Qxc3 {[%clk 0:03:01]} 18. Rab1
{[%clk 0:02:04.9]} 18... Nxb4 {[%clk 0:02:50.4]} 19. Qxc3 {[%clk 0:01:36.9]}
19... Bxc3 {[%clk 0:02:50.3]} 20. Be2 {[%clk 0:01:30.2]} 20... g4 {[%clk
0:02:50.1]} 0-1

[Event "Late-Titled-Tuesday-Blitz-September-19-2023"]
[Site "Chess.com"]
[Date "2023.09.19"]
[Round "3"]
[White "campochess"]
[Black "IamSchrodingersCat"]
[Result "0-1"]
[WhiteElo "2170"]
[BlackElo "2512"]
[TimeControl "180+1"]
[EndTime "14:22:43 PDT"]
[Termination "IamSchrodingersCat won by checkmate"]

1. d4 {[%clk 0:02:57.8]} 1... Nf6 {[%clk 0:02:59.8]} 2. Bg5 {[%clk 0:02:56.8]}
2... g6 {[%clk 0:02:55.7]} 3. Bxf6 {[%clk 0:02:56.4]} 3... exf6 {[%clk
0:02:56.6]} 4. e3 {[%clk 0:02:56.3]} 4... d5 {[%clk 0:02:55.8]} 5. c4 {[%clk
0:02:56.3]} 5... dxc4 {[%clk 0:02:53.6]} 6. Bxc4 {[%clk 0:02:54.8]} 6... Bd6
{[%clk 0:02:52.8]} 7. h4 {[%clk 0:02:52.9]} 7... h5 {[%clk 0:02:52.2]} 8. Nf3
{[%clk 0:02:50.5]} 8... O-O {[%clk 0:02:51.8]} 9. Nc3 {[%clk 0:02:48.2]} 9... a6
{[%clk 0:02:49.5]} 10. Qc2 {[%clk 0:02:47.1]} 10... Kg7 {[%clk 0:02:48.9]} 11.
a4 {[%clk 0:02:45.9]} 11... Nc6 {[%clk 0:02:45.3]} 12. a5 {[%clk 0:02:40.8]}
12... Bg4 {[%clk 0:02:42.9]} 13. Nd2 {[%clk 0:02:36.5]} 13... Bf5 {[%clk
0:02:38.7]} 14. Bd3 {[%clk 0:02:35.6]} 14... Nb4 {[%clk 0:02:38.4]} 15. Bxf5
{[%clk 0:02:35.1]} 15... Nxc2+ {[%clk 0:02:38.4]} 16. Bxc2 {[%clk 0:02:34.8]}
16... Bb4 {[%clk 0:02:37.4]} 17. O-O {[%clk 0:02:33.2]} 17... c5 {[%clk
0:02:34]} 18. Nb3 {[%clk 0:02:30.1]} 18... cxd4 {[%clk 0:02:31.1]} 19. Nxd4
{[%clk 0:02:28.2]} 19... Bxc3 {[%clk 0:02:28]} 20. bxc3 {[%clk 0:02:27]} 20...
Rc8 {[%clk 0:02:28.5]} 21. Ra3 {[%clk 0:02:26.4]} 21... Qe7 {[%clk 0:02:22.5]}
22. Rb3 {[%clk 0:02:20.6]} 22... Rc7 {[%clk 0:02:19.4]} 23. Rfb1 {[%clk
0:02:19.7]} 23... Rfc8 {[%clk 0:02:19.8]} 24. Bd1 {[%clk 0:02:11.3]} 24... f5
{[%clk 0:02:16.1]} 25. Bf3 {[%clk 0:02:11.1]} 25... Rxc3 {[%clk 0:02:12.8]} 26.
Rxb7 {[%clk 0:02:08.7]} 26... Rc1+ {[%clk 0:02:09.1]} 27. Rxc1 {[%clk
0:01:53.7]} 27... Rxc1+ {[%clk 0:02:10]} 28. Kh2 {[%clk 0:01:53.6]} 28... Qxh4#
{[%clk 0:02:09.7]} 0-1

[Event "Late-Titled-Tuesday-Blitz-September-19-2023"]
[Site "Chess.com"]
[Date "2023.09.19"]
[Round "3"]
[White "GeorgiosSouleidis"]
[Black "rikchessmx"]
[Result "1-0"]
[WhiteElo "2508"]
[BlackElo "2334"]
[TimeControl "180+1"]
[EndTime "14:23:09 PDT"]
[Termination "GeorgiosSouleidis won by resignation"]

1. e4 {[%clk 0:03:00.9]} 1... c5 {[%clk 0:02:57.4]} 2. Be2 {[%clk 0:03:00.8]}
2... e6 {[%clk 0:02:58.3]} 3. d3 {[%clk 0:03:01.2]} 3... d5 {[%clk 0:02:57.9]}
4. f4 {[%clk 0:03:01.6]} 4... Nc6 {[%clk 0:02:57.8]} 5. Nf3 {[%clk 0:03:01.8]}
5... g6 {[%clk 0:02:57.4]} 6. O-O {[%clk 0:03:01.6]} 6... Bg7 {[%clk 0:02:57.7]}
7. c3 {[%clk 0:03:02.1]} 7... Nge7 {[%clk 0:02:57]} 8. Na3 {[%clk 0:03:01.7]}
8... O-O {[%clk 0:02:55.6]} 9. Nc2 {[%clk 0:03:02.1]} 9... b6 {[%clk 0:02:53]}
10. e5 {[%clk 0:03:02.4]} 10... d4 {[%clk 0:02:49.1]} 11. c4 {[%clk 0:02:52.4]}
11... Bb7 {[%clk 0:02:47.4]} 12. Bd2 {[%clk 0:02:52.5]} 12... a5 {[%clk
0:02:46.3]} 13. b3 {[%clk 0:02:52.4]} 13... Nb4 {[%clk 0:02:45.6]} 14. a3 {[%clk
0:02:51]} 14... Nbc6 {[%clk 0:02:44.8]} 15. b4 {[%clk 0:02:47.7]} 15... Nf5
{[%clk 0:02:43.6]} 16. bxc5 {[%clk 0:02:41.3]} 16... bxc5 {[%clk 0:02:43.2]} 17.
Rb1 {[%clk 0:02:41.8]} 17... Qc7 {[%clk 0:02:38.5]} 18. Ng5 {[%clk 0:02:39.6]}
18... Nce7 {[%clk 0:02:33.7]} 19. Bf3 {[%clk 0:02:36.7]} 19... Bxf3 {[%clk
0:02:31.6]} 20. Qxf3 {[%clk 0:02:37.6]} 20... Rab8 {[%clk 0:02:31]} 21. Ne4
{[%clk 0:02:30.5]} 21... h5 {[%clk 0:02:26.5]} 22. a4 {[%clk 0:02:26.4]} 22...
Rfd8 {[%clk 0:02:11.6]} 23. Rb5 {[%clk 0:02:24.4]} 23... Rxb5 {[%clk 0:02:09.5]}
24. axb5 {[%clk 0:02:23]} 24... h4 {[%clk 0:01:58.4]} 25. Ra1 {[%clk 0:02:22.2]}
25... h3 {[%clk 0:01:46.8]} 26. Bxa5 {[%clk 0:02:17.5]} 26... Qa7 {[%clk
0:01:42.9]} 27. Bxd8 {[%clk 0:02:13.1]} 27... Qb8 {[%clk 0:01:39.1]} 28. Bxe7
{[%clk 0:02:08.4]} 28... Nxe7 {[%clk 0:01:38.9]} 29. Ra8 {[%clk 0:02:03.9]} 1-0

[Event "Late-Titled-Tuesday-Blitz-September-19-2023"]
[Site "Chess.com"]
[Date "2023.09.19"]
[Round "3"]
[White "hurricane7791"]
[Black "Hikaru"]
[Result "0-1"]
[WhiteElo "2716"]
[BlackElo "3247"]
[TimeControl "180+1"]
[EndTime "14:23:10 PDT"]
[Termination "Hikaru won by resignation"]

1. d4 {[%clk 0:02:50.7]} 1... a6 {[%clk 0:03:00.9]} 2. Nf3 {[%clk 0:02:48]} 2...
b5 {[%clk 0:03:00.3]} 3. e4 {[%clk 0:02:47.7]} 3... Bb7 {[%clk 0:03:00.6]} 4.
Bd3 {[%clk 0:02:48.3]} 4... e6 {[%clk 0:03:01.1]} 5. O-O {[%clk 0:02:48.6]} 5...
c5 {[%clk 0:03:01.3]} 6. dxc5 {[%clk 0:02:48.5]} 6... Bxc5 {[%clk 0:03:01.8]} 7.
a4 {[%clk 0:02:49.3]} 7... b4 {[%clk 0:02:56.8]} 8. Nbd2 {[%clk 0:02:49.2]} 8...
d6 {[%clk 0:02:56.7]} 9. Nb3 {[%clk 0:02:47.2]} 9... Nd7 {[%clk 0:02:56.4]} 10.
Qe2 {[%clk 0:02:45.3]} 10... Ngf6 {[%clk 0:02:54.5]} 11. Bg5 {[%clk 0:02:35.9]}
11... h6 {[%clk 0:02:53.8]} 12. Bh4 {[%clk 0:02:35.7]} 12... g5 {[%clk
0:02:52.3]} 13. Bg3 {[%clk 0:02:35.7]} 13... Nh5 {[%clk 0:02:53]} 14. Rad1
{[%clk 0:02:26.7]} 14... Nxg3 {[%clk 0:02:52.9]} 15. hxg3 {[%clk 0:02:26.8]}
15... Qc7 {[%clk 0:02:50.5]} 16. Rfe1 {[%clk 0:02:19.6]} 16... g4 {[%clk
0:02:46.6]} 17. Nfd2 {[%clk 0:02:15.3]} 17... h5 {[%clk 0:02:46.7]} 18. Nxc5
{[%clk 0:02:15.1]} 18... Nxc5 {[%clk 0:02:43.9]} 19. Nc4 {[%clk 0:02:03.6]}
19... O-O-O {[%clk 0:02:39.8]} 20. a5 {[%clk 0:02:02.3]} 20... Kb8 {[%clk
0:02:39.9]} 21. Qe3 {[%clk 0:02:00.4]} 21... h4 {[%clk 0:02:37.7]} 22. e5 {[%clk
0:01:28.6]} 22... dxe5 {[%clk 0:02:36.4]} 23. Qxe5 {[%clk 0:01:26.2]} 23... h3
{[%clk 0:02:34.7]} 24. Qxc7+ {[%clk 0:01:18.8]} 24... Kxc7 {[%clk 0:02:33.8]}
25. Bf1 {[%clk 0:01:02.5]} 25... h2+ {[%clk 0:02:33.5]} 26. Kh1 {[%clk
0:01:02.9]} 26... Rxd1 {[%clk 0:02:34.1]} 27. Rxd1 {[%clk 0:01:02.8]} 27... Ne4
{[%clk 0:02:34.8]} 0-1